bitfinex-derivatives/quotes_BTCF0:USTF0_20250315
["timestamp","ask_amount","ask_price","bid_price","bid_amount"]
[1742078557531,0.42918651,84378.0,84377.0,0.23897992]
[1742078557936,0.41692297,84378.0,84377.0,0.2123064]
[1742078558238,0.41692297,84378.0,84377.0,0.17525984]
[1742078558640,0.41692297,84378.0,84377.0,0.29377314]
[1742078559130,0.41099552,84378.0,84377.0,0.29377314]
[1742078559850,0.41099552,84378.0,84377.0,0.17525984]
[1742078560045,0.42933648,84378.0,84377.0,0.17525984]
[1742078563237,0.42931199,84378.0,84377.0,0.14255984]
[1742078564746,0.42931199,84378.0,84377.0,0.26107314]
[1742078564949,0.41104379,84378.0,84377.0,0.29157314]
[1742078566453,0.41104379,84378.0,84377.0,0.17305984]
[1742078567249,0.41104379,84378.0,84377.0,0.13601231]
[1742078567441,0.41104379,84378.0,84377.0,0.0305]
[1742078567642,0.1185133,84377.0,84376.0,4e-05]
[1742078567847,0.12993093,84377.0,84376.0,4e-05]
[1742078568049,0.12993093,84377.0,84358.0,0.00870764]
[1742078568050,0.1185231,84370.0,84369.0,0.0333]
[1742078568244,0.13364537,84370.0,84369.0,0.24]
[1742078568745,0.19474537,84370.0,84369.0,0.24]
[1742078568944,0.19474537,84370.0,84369.0,0.3585245]
[1742078569546,0.19437578,84370.0,84369.0,0.3585245]
[1742078570245,0.19437578,84370.0,84369.0,0.3917245]
[1742078571554,0.19437578,84370.0,84369.0,0.4224245]
[1742078573942,0.19437235,84370.0,84369.0,0.4224245]
[1742078574145,0.19437235,84370.0,84369.0,0.4274963]
[1742078574759,0.19437235,84370.0,84369.0,0.2450718]
[1742078575973,0.19451512,84370.0,84369.0,0.2450718]
[1742078576749,0.19451512,84370.0,84369.0,0.0050718]
[1742078577360,0.1185245,84369.0,84368.0,0.02850045]
[1742078577564,0.13336783,84369.0,84368.0,0.02850045]
[1742078577760,0.19576783,84369.0,84368.0,0.02850045]
[1742078578258,0.1185259,84368.0,84366.0,0.00931551]
[1742078578452,0.1185287,84366.0,84365.0,0.00448624]
[1742078578649,0.12966739,84366.0,84365.0,0.00448624]
[1742078578850,0.19556739,84366.0,84365.0,0.00448624]
[1742078579163,0.1185344,84362.0,84361.0,0.00758135]
[1742078579361,0.14789684,84362.0,84361.0,0.01758135]
[1742078579857,0.14789684,84362.0,84361.0,0.00758135]
[1742078580063,0.15160148,84362.0,84361.0,0.00758135]
[1742078580247,0.15160148,84362.0,84361.0,0.24758135]
[1742078580447,0.15160148,84362.0,84361.0,0.00758135]
[1742078580753,0.26732148,84362.0,84361.0,0.00858135]
[1742078581562,0.26632148,84362.0,84361.0,0.00858135]
[1742078582158,0.26632148,84362.0,84361.0,0.02859323]
[1742078582968,0.26632148,84362.0,84361.0,0.06159323]
[1742078583268,0.32395764,84362.0,84361.0,0.06159323]
[1742078585772,0.32395764,84362.0,84361.0,0.02859323]
[1742078586156,0.32695764,84362.0,84361.0,0.02659323]
[1742078586366,0.32995764,84362.0,84361.0,0.02659323]
[1742078586670,0.32995764,84362.0,84361.0,0.05839323]
[1742078587467,0.32995764,84362.0,84361.0,0.0213363]
[1742078587669,0.1185358,84361.0,84360.0,0.03931185]
[1742078587969,0.21279824,84361.0,84360.0,0.05816891]
[1742078588170,0.19457449,84361.0,84360.0,0.05816891]
[1742078588469,0.19827913,84361.0,84360.0,0.01885706]
[1742078588671,0.1185372,84360.0,84359.0,0.00776813]
[1742078588973,0.12967589,84360.0,84359.0,0.00776813]
[1742078589158,0.19457589,84360.0,84359.0,0.00776813]
[1742078589360,0.19828053,84360.0,84359.0,0.00776813]
[1742078589572,0.19828053,84360.0,84359.0,0.12630673]
[1742078590160,0.19828053,84360.0,84359.0,0.36630673]
[1742078590657,0.20028053,84360.0,84359.0,0.41586297]
[1742078590855,0.19657589,84360.0,84359.0,0.41586297]
[1742078591067,0.25421205,84360.0,84359.0,0.41586297]
[1742078591678,0.25621205,84360.0,84359.0,0.44096297]
[1742078592273,0.24507336,84360.0,84359.0,0.44096297]
[1742078592655,0.24607336,84360.0,84359.0,0.44096297]
[1742078594765,0.1884372,84360.0,84359.0,0.44096297]
[1742078596178,0.1874372,84360.0,84359.0,0.44096297]
[1742078597076,0.0689,84360.0,84359.0,0.44096297]
[1742078597269,0.1546372,84360.0,84359.0,0.44096297]
[1742078598565,0.1546372,84360.0,84359.0,0.41586297]
[1742078602075,0.1546372,84360.0,84359.0,0.29732437]
[1742078602276,0.1546372,84360.0,84359.0,0.38486297]
[1742078603269,0.16543664,84360.0,84359.0,0.38486297]
[1742078603677,0.16543664,84360.0,84359.0,0.41646297]
[1742078604269,0.1546372,84360.0,84359.0,0.41646297]
[1742078613285,0.1546372,84360.0,84359.0,0.38486297]
[1742078615988,0.1546372,84360.0,84359.0,0.41586297]
[1742078628692,0.1546372,84360.0,84359.0,0.29732437]
[1742078628894,0.1546372,84360.0,84359.0,0.26632437]
[1742078629098,0.1546372,84360.0,84359.0,0.38486297]
[1742078633695,0.1546372,84360.0,84359.0,0.41756297]
[1742078633898,0.1546372,84360.0,84359.0,0.44266297]
[1742078640606,0.1546372,84360.0,84359.0,0.41756297]
[1742078641397,0.1546372,84360.0,84359.0,0.38486297]
[1742078641603,0.1546372,84360.0,84359.0,0.41616297]
[1742078642199,0.1546372,84360.0,84359.0,0.38486297]
[1742078642705,0.1850372,84360.0,84359.0,0.38486297]
[1742078647895,0.1546372,84360.0,84359.0,0.38486297]
[1742078648103,0.1546372,84360.0,84359.0,0.41786297]
[1742078650512,0.1546372,84360.0,84359.0,0.44296297]
[1742078655814,0.1546372,84360.0,84359.0,0.41786297]
[1742078659005,0.1867372,84360.0,84359.0,0.41786297]
[1742078667113,0.1867372,84360.0,84359.0,0.38486297]
[1742078670725,0.1867372,84360.0,84359.0,0.41656297]
[1742078680529,0.1867372,84360.0,84359.0,0.26632437]
[1742078680730,0.2184372,84360.0,84359.0,0.26632437]
[1742078682018,0.2184372,84360.0,84359.0,0.02632437]
[1742078685524,0.1867372,84360.0,84359.0,0.14486297]
[1742078685825,0.1867372,84360.0,84359.0,0.20606297]
[1742078686227,0.1867372,84360.0,84359.0,0.48606297]
[1742078689939,0.1867372,84360.0,84359.0,0.51116297]
[1742078692130,0.1867372,84360.0,84359.0,0.33672437]
[1742078692440,0.1867372,84360.0,84359.0,0.45526297]
[1742078692636,0.1867372,84360.0,84359.0,0.33672437]
[1742078692940,0.1867372,84360.0,84359.0,0.45526297]
[1742078693136,0.1867372,84360.0,84359.0,0.33672437]
[1742078693539,0.1867372,84360.0,84359.0,0.45526297]
[1742078693738,0.1867372,84360.0,84359.0,0.30632437]
[1742078694342,0.1867372,84360.0,84359.0,0.42486297]
[1742078698134,0.1867372,84360.0,84359.0,0.45496297]
[1742078699049,0.1867372,84360.0,84359.0,0.42486297]
[1742078699343,0.1867372,84360.0,84359.0,0.30632437]
[1742078700335,0.1867372,84360.0,84359.0,0.42486297]
[1742078700748,0.1867372,84360.0,84359.0,0.48196297]
[1742078702239,0.0682,84360.0,84359.0,0.48196297]
[1742078702638,0.1867372,84360.0,84359.0,0.48196297]
[1742078707448,0.1867372,84360.0,84359.0,0.45686297]
[1742078710053,0.1867372,84360.0,84359.0,0.33832437]
[1742078710857,0.1867372,84360.0,84359.0,0.30632437]
[1742078717050,0.19758651,84360.0,84359.0,0.30632437]
[1742078719356,0.19759501,84360.0,84359.0,0.30632437]
[1742078722546,0.19759501,84360.0,84359.0,0.42486297]
[1742078724059,0.1867372,84360.0,84359.0,0.49016297]
[1742078729266,0.1867372,84360.0,84359.0,0.37162437]
[1742078729869,0.1867372,84360.0,84359.0,0.49016297]
[1742078732371,0.1867372,84360.0,84359.0,0.85096297]
[1742078732557,0.1867372,84360.0,84359.0,1.11606297]
[1742078732757,0.0682,84360.0,84359.0,1.34606297]
[1742078732968,0.0361,84360.0,84359.0,1.34606297]
[1742078733367,0.1546372,84360.0,84359.0,1.34606297]
[1742078735155,0.0361,84360.0,84359.0,1.34606297]
[1742078735360,0.1546372,84360.0,84359.0,1.34606297]
[1742078735657,0.13676306,84365.0,84364.0,0.1185316]
[1742078735863,0.059257,84377.0,84367.0,0.059263]
[1742078736165,0.0333,84374.0,84369.0,0.1185245]
[1742078736468,0.0333,84374.0,84369.0,1.1892245]
[1742078736659,0.1518186,84374.0,84369.0,1.2143245]
[1742078736859,0.1185194,84373.0,84369.0,1.2143245]
[1742078737062,0.00517771,84370.0,84369.0,1.2143245]
[1742078737457,0.31973978,84376.0,84375.0,0.1185161]
[1742078737660,0.31973978,84376.0,84375.0,1.2393161]
[1742078738184,0.0305,84377.0,84376.0,0.1185147]
[1742078738471,0.0305,84377.0,84376.0,0.9292147]
[1742078738672,0.0305,84377.0,84376.0,0.9543147]
[1742078739074,0.1185125,84378.0,84377.0,0.1185133]
[1742078739261,0.1185125,84378.0,84377.0,0.9761133]
[1742078739665,0.1185125,84378.0,84377.0,0.4561133]
[1742078739860,0.1500125,84378.0,84377.0,0.4561133]
[1742078740771,0.1550125,84378.0,84377.0,0.4561133]
[1742078741275,0.1600125,84378.0,84377.0,0.4561133]
[1742078742879,0.1600125,84378.0,84377.0,0.9561133]
[1742078743577,0.17793231,84385.0,84384.0,0.1185035]
[1742078743878,0.17793231,84385.0,84384.0,0.3685035]
[1742078744374,0.17793231,84385.0,84384.0,0.4245035]
[1742078744679,0.18393231,84385.0,84384.0,0.4245035]
[1742078744975,0.18893231,84385.0,84384.0,0.4245035]
[1742078746668,0.07042881,84385.0,84384.0,0.4245035]
[1742078747067,0.07042881,84385.0,84384.0,0.44328518]
[1742078753364,0.07042881,84385.0,84384.0,0.41818518]
[1742078754775,0.10072881,84385.0,84384.0,0.41818518]
[1742078763597,0.10072881,84385.0,84384.0,0.38728518]
[1742078764681,0.10072881,84385.0,84384.0,0.41858518]
[1742078766182,0.04147771,84385.0,84384.0,0.41858518]
[1742078767482,0.04147771,84385.0,84384.0,0.45078518]
[1742078768589,0.07367771,84385.0,84384.0,0.45078518]
[1742078769393,0.19217981,84385.0,84384.0,0.45078518]
[1742078769792,0.19217981,84385.0,84384.0,0.41948518]
[1742078771488,0.19217981,84385.0,84384.0,0.38728518]
[1742078793627,0.19217981,84385.0,84384.0,0.41758518]
[1742078793991,0.19217981,84385.0,84384.0,0.44268518]
[1742078794710,0.19217981,84385.0,84384.0,0.41758518]
[1742078797303,0.19217981,84385.0,84384.0,0.44268518]
[1742078804616,0.07367771,84385.0,84384.0,0.44268518]
[1742078804811,0.19217981,84385.0,84384.0,0.44268518]
[1742078810121,0.07367771,84385.0,84384.0,0.44268518]
[1742078813910,0.19217981,84385.0,84384.0,0.41758518]
[1742078830346,0.07367771,84385.0,84384.0,0.41758518]
[1742078830535,0.19217981,84385.0,84384.0,0.41758518]
[1742078832155,0.07367771,84385.0,84384.0,0.41758518]
[1742078832356,0.24749715,84393.0,84392.0,0.1184922]
[1742078832549,0.05931,84397.0,84396.0,0.1184866]
[1742078832744,0.05931,84397.0,84396.0,0.3784866]
[1742078832942,0.05931,84397.0,84396.0,0.4035866]
[1742078833142,0.05931,84397.0,84396.0,0.9035866]
[1742078833555,0.34216525,84398.0,84397.0,0.1184852]
[1742078833754,0.34216525,84398.0,84397.0,0.7012852]
[1742078833964,0.34220525,84398.0,84397.0,0.6712852]
[1742078834160,0.46068905,84398.0,84397.0,0.6356952]
[1742078835263,0.46068905,84398.0,84397.0,0.3956952]
[1742078835461,0.2108238,84398.0,84397.0,0.25]
[1742078835761,0.2412238,84398.0,84397.0,0.25]
[1742078835963,0.2431838,84398.0,84397.0,0.25]
[1742078836562,0.2431838,84398.0,84397.0,0.3684852]
[1742078838860,0.2127838,84398.0,84397.0,0.3684852]
[1742078839047,0.2127838,84398.0,84397.0,0.4307852]
[1742078848666,0.2127838,84398.0,84397.0,0.3995852]
[1742078848861,0.2438838,84398.0,84397.0,0.3684852]
[1742078849066,0.1777852,84397.0,84396.0,4e-05]
[1742078849268,0.2077852,84397.0,84396.0,4e-05]
[1742078849463,0.2383852,84397.0,84396.0,4e-05]
[1742078850058,0.2383852,84397.0,84396.0,0.1185266]
[1742078850663,0.2413852,84397.0,84396.0,0.1184866]
[1742078855073,0.1777866,84396.0,84395.0,4e-05]
[1742078855474,0.2397866,84396.0,84395.0,4e-05]
[1742078856373,0.2397866,84396.0,84395.0,0.118528]
[1742078856866,0.2427866,84396.0,84395.0,0.118528]
[1742078857473,0.24649063,84396.0,84395.0,0.118528]
[1742078857677,0.24649063,84396.0,84395.0,0.08148768]
[1742078858365,0.2427866,84396.0,84395.0,0.08148768]
[1742078870074,0.2427866,84396.0,84395.0,0.17728768]
[1742078879902,0.1184908,84393.0,84392.0,4e-05]
[1742078880579,0.1184964,84389.0,84388.0,0.00017771]
[1742078881390,0.1824964,84389.0,84388.0,0.00017771]
[1742078883394,0.1854964,84389.0,84388.0,0.00017771]
[1742078891197,0.1854964,84389.0,84388.0,0.29017771]
[1742078891492,0.1854964,84389.0,84388.0,0.11867551]
[1742078891687,0.1854964,84389.0,84388.0,0.00017771]
[1742078892997,0.1854964,84389.0,84388.0,0.25017771]
[1742078907505,0.2447964,84389.0,84388.0,0.25017771]
[1742078910410,0.2447964,84389.0,84388.0,0.28227771]
[1742078913106,0.2447964,84389.0,84388.0,0.03227771]
[1742078932814,0.1854964,84389.0,84388.0,0.03227771]
[1742078936920,0.1854964,84389.0,84388.0,0.06537771]
[1742078937818,0.1854964,84389.0,84388.0,0.03327771]
[1742078945124,0.5462964,84389.0,84388.0,0.03327771]
[1742078945623,0.1854964,84389.0,84388.0,0.03327771]
[1742078945823,0.5462964,84389.0,84388.0,0.03327771]
[1742078948328,0.1854964,84389.0,84388.0,0.03327771]
[1742078948529,0.5462964,84389.0,84388.0,0.03327771]
[1742078948725,0.5462964,84389.0,84388.0,0.00017771]
[1742078949828,0.6462964,84389.0,84388.0,0.00017771]
[1742078950028,0.1185175,84374.0,84373.0,0.0955]
[1742078950238,0.1185175,84374.0,84373.0,0.1055]
[1742078950840,0.1826175,84374.0,84373.0,0.1055]
[1742078951530,0.1856175,84374.0,84373.0,0.1055]
[1742078952231,0.1856175,84374.0,84373.0,0.12119119]
[1742078952634,0.1856175,84374.0,84373.0,0.01569119]
[1742078952635,0.4256175,84374.0,84373.0,0.01569119]
[1742078952835,0.1185189,84373.0,84372.0,4e-05]
[1742078953236,0.1827189,84373.0,84372.0,4e-05]
[1742078953538,0.1185245,84369.0,84368.0,0.0322]
[1742078953726,0.1185245,84369.0,84368.0,0.0636]
[1742078954332,0.1827245,84369.0,84368.0,0.0636]
[1742078954843,0.1857245,84369.0,84368.0,0.0636]
[1742078955845,0.1857245,84369.0,84368.0,0.48796878]
[1742078966248,0.1857245,84369.0,84368.0,0.30584288]
[1742078966443,0.4257245,84369.0,84368.0,0.30584288]
[1742078966647,0.4257245,84369.0,84368.0,0.01584288]
[1742078966850,0.1185259,84368.0,84367.0,4e-05]
[1742078967149,0.1489259,84368.0,84367.0,4e-05]
[1742078967340,0.2139259,84368.0,84367.0,4e-05]
[1742078967848,0.1185287,84366.0,84365.0,0.00017771]
[1742078968650,0.4793287,84366.0,84365.0,0.00017771]
[1742078969539,0.4793287,84366.0,84365.0,0.01576263]
[1742078969744,0.1272632,84368.0,84365.0,0.33502703]
[1742078969941,0.1272632,84368.0,84367.0,0.1185273]
[1742078970143,0.0347,84368.0,84367.0,0.8585273]
[1742078970446,0.0347,84368.0,84367.0,0.4417273]
[1742078970650,0.0317,84368.0,84367.0,0.4417273]
[1742078971247,0.0347,84368.0,84367.0,0.4417273]
[1742078973956,0.1532259,84368.0,84367.0,0.4417273]
[1742078978452,0.0347,84368.0,84367.0,0.4417273]
[1742078981558,0.1532259,84368.0,84367.0,0.4417273]
[1742078983763,0.003,84368.0,84367.0,1.0817273]
[1742078983965,0.1820087,84381.0,84380.0,0.1185091]
[1742078984262,0.1820087,84381.0,84380.0,0.3785091]
[1742078984966,0.1820087,84381.0,84380.0,0.4420091]
[1742078986864,0.0635,84381.0,84380.0,0.4420091]
[1742078988562,0.1820077,84381.0,84380.0,0.4420091]
[1742078989060,0.0635,84381.0,84380.0,0.4420091]
[1742078989561,0.1820077,84381.0,84380.0,0.4420091]
[1742078994668,0.1820077,84381.0,84380.0,0.3785091]
[1742078994864,0.2146077,84381.0,84380.0,0.3785091]
[1742078995069,0.2146077,84381.0,84380.0,0.26]
[1742078995966,0.1185091,84380.0,84379.0,0.1185501]
[1742078996362,0.1846091,84380.0,84379.0,0.1185501]
[1742078997166,0.1846091,84380.0,84379.0,0.1185101]
[1742078997868,0.1185105,84379.0,84378.0,4e-05]
[1742078998179,0.1185105,84379.0,84378.0,0.1185519]
[1742078998471,0.1814105,84379.0,84378.0,0.1185519]
[1742079001774,0.1814105,84379.0,84378.0,0.4600519]
[1742079001978,0.1814105,84379.0,84378.0,0.4298519]
[1742079002166,0.1814105,84379.0,84378.0,0.3985519]
[1742079002566,0.1814105,84379.0,84378.0,0.3985119]
[1742079020483,0.1814105,84379.0,84378.0,0.4625119]
[1742079021188,0.1814105,84379.0,84378.0,0.7125119]
[1742079022791,0.0629,84379.0,84378.0,0.7125119]
[1742079022993,0.0629,84379.0,84378.0,0.4925119]
[1742079023191,0.0629,84379.0,84378.0,1.0125119]
[1742079023790,0.00017771,84382.0,84381.0,0.1185077]
[1742079024095,0.00017771,84382.0,84381.0,1.2993077]
[1742079024395,0.00017771,84382.0,84381.0,1.3628077]
[1742079025488,0.0592448,84394.0,84381.0,1.3628077]
[1742079025489,0.28366179,84393.0,84392.0,0.1184922]
[1742079025692,0.28366179,84393.0,84392.0,1.3692922]
[1742079025883,0.28366179,84393.0,84392.0,1.0892922]
[1742079026482,0.28366179,84393.0,84392.0,1.1539922]
[1742079026678,0.0604,84398.0,84397.0,0.1184852]
[1742079026985,0.00017771,84401.0,84400.0,0.118481]
[1742079027288,0.00017771,84401.0,84400.0,0.598481]
[1742079027488,0.11865731,84401.0,84400.0,0.598481]
[1742079027687,0.17905731,84401.0,84400.0,0.663181]
[1742079028594,0.17905731,84401.0,84400.0,0.44261237]
[1742079031894,0.17905731,84401.0,84400.0,0.45169319]
[1742079034695,0.11865731,84401.0,84400.0,0.45169319]
[1742079034998,0.18235731,84401.0,84400.0,0.45169319]
[1742079035498,0.11865731,84401.0,84400.0,0.45169319]
[1742079035698,0.18235731,84401.0,84400.0,0.45169319]
[1742079036089,0.11865731,84401.0,84400.0,0.45169319]
[1742079036596,0.18235731,84401.0,84400.0,0.45169319]
[1742079036998,0.11865731,84401.0,84400.0,0.45169319]
[1742079037505,0.14905731,84401.0,84400.0,0.45169319]
[1742079048993,0.03057771,84401.0,84400.0,0.45169319]
[1742079049199,0.03057771,84401.0,84400.0,0.78169319]
[1742079049402,0.03057771,84401.0,84400.0,0.87169319]
[1742079054512,0.14905731,84401.0,84400.0,0.71699319]
[1742079054817,0.17995731,84401.0,84400.0,0.71699319]
[1742079055009,0.17995731,84401.0,84400.0,0.38699319]
[1742079058916,0.17995731,84401.0,84400.0,0.25943137]
[1742079059111,0.17995731,84401.0,84400.0,0.01943137]
[1742079059310,0.17995731,84401.0,84399.0,4e-05]
[1742079059311,0.118481,84400.0,84399.0,4e-05]
[1742079059511,0.148881,84400.0,84399.0,0.1185224]
[1742079059720,0.179781,84400.0,84399.0,4e-05]
[1742079060206,0.179781,84400.0,84398.0,0.4798835]
[1742079060207,0.1184824,84399.0,84398.0,0.4798835]
[1742079060516,0.1184824,84399.0,84398.0,0.36084]
[1742079060714,0.1797824,84399.0,84398.0,0.36084]
[1742079060917,0.5405824,84399.0,84398.0,4e-05]
[1742079061713,0.5405824,84399.0,84391.0,0.1184933]
[1742079061714,0.1184922,84392.0,84391.0,0.1184929]
[1742079061907,0.1184936,84391.0,84378.0,0.02]
[1742079062107,0.2116936,84391.0,84390.0,0.22289568]
[1742079062411,0.2116936,84391.0,84390.0,0.01]
[1742079063523,0.2116936,84391.0,84390.0,0.02771417]
[1742079063705,0.2116936,84391.0,84390.0,0.14620917]
[1742079065603,0.0616,84391.0,84390.0,0.14620917]
[1742079065808,0.0616,84391.0,84390.0,0.17750917]
[1742079066616,0.1800936,84391.0,84390.0,0.17750917]
[1742079066822,0.1800936,84391.0,84390.0,0.20780917]
[1742079068903,0.1800936,84391.0,84390.0,0.14620917]
[1742079078727,0.1800936,84391.0,84390.0,0.17910917]
[1742079079725,0.1800936,84391.0,84390.0,0.14620917]
[1742079082329,0.1800936,84391.0,84390.0,0.02771417]
[1742079082542,0.1800936,84391.0,84390.0,0.01771417]
[1742079082712,0.1800936,84391.0,84380.0,0.1185085]
[1742079082713,0.1185021,84385.0,84380.0,0.1185085]
[1742079082918,0.1185147,84377.0,84376.0,0.1185139]
[1742079083118,0.1185147,84377.0,84376.0,0.1485139]
[1742079083317,0.1185147,84377.0,84376.0,0.03]
[1742079083518,0.1185147,84377.0,84376.0,0.048177]
[1742079083735,0.1841147,84377.0,84376.0,0.018177]
[1742079083920,0.1185161,84375.0,84374.0,0.1185174]
[1742079084121,0.092158,84376.0,84372.0,0.05926]
[1742079084426,0.1185189,84373.0,84372.0,0.07926]
[1742079084832,0.1509189,84373.0,84372.0,0.07926]
[1742079085519,0.1509189,84373.0,84372.0,0.09679994]
[1742079085723,0.1509189,84373.0,84372.0,0.07679994]
[1742079086821,0.1509189,84373.0,84372.0,0.01753994]
[1742079087129,0.1185217,84371.0,84370.0,0.0592609]
[1742079087430,0.1185217,84371.0,84370.0,0.0692609]
[1742079088226,0.1185217,84371.0,84370.0,0.01]
[1742079088421,0.1185245,84370.0,84369.0,0.1185244]
[1742079088623,0.1815245,84370.0,84369.0,0.1285244]
[1742079089530,0.1815245,84370.0,84369.0,0.1615244]
[1742079089732,0.1815245,84370.0,84369.0,0.2242244]
[1742079090129,0.1815245,84370.0,84369.0,0.24198145]
[1742079090838,0.1815245,84370.0,84369.0,0.17928145]
[1742079092326,0.1815245,84370.0,84369.0,0.21008145]
[1742079093236,0.063,84370.0,84369.0,0.21008145]
[1742079093436,0.1815231,84370.0,84369.0,0.21008145]
[1742079110149,0.063,84370.0,84369.0,0.21008145]
[1742079110748,0.063,84370.0,84369.0,0.26008145]
[1742079111159,0.063,84370.0,84369.0,0.21008145]
[1742079118052,0.063,84370.0,84369.0,0.23008145]
[1742079119459,0.063,84370.0,84369.0,0.21008145]
[1742079122251,0.063,84370.0,84369.0,0.22008145]
[1742079123156,0.063,84370.0,84369.0,0.21008145]
[1742079123356,0.063,84370.0,84369.0,0.23008145]
[1742079125948,0.00017771,84383.0,84379.0,0.0592545]
[1742079126253,0.00017771,84383.0,84382.0,0.1185063]
[1742079126451,0.00017771,84383.0,84382.0,0.3685063]
[1742079127358,0.00017771,84383.0,84382.0,0.4307063]
[1742079129546,0.06507771,84383.0,84382.0,0.4307063]
[1742079135565,0.18358261,84383.0,84382.0,0.4307063]
[1742079135968,0.18358261,84383.0,84382.0,0.1807063]
[1742079136555,0.18358261,84383.0,84382.0,0.4101063]
[1742079136962,0.18358261,84383.0,84382.0,0.3785063]
[1742079143965,0.18358261,84383.0,84382.0,0.4428063]
[1742079145476,0.06507771,84383.0,84382.0,0.4428063]
[1742079145676,0.06507771,84383.0,84382.0,0.4758063]
[1742079154879,0.18358261,84383.0,84382.0,0.4758063]
[1742079170197,0.21388261,84383.0,84382.0,0.4758063]
[1742079184406,0.21388261,84383.0,84382.0,0.4428063]
[1742079189714,0.21388261,84383.0,84382.0,0.3785063]
[1742079190010,0.21388261,84383.0,84382.0,0.26]
[1742079193405,0.21388261,84383.0,84382.0,0.3785063]
[1742079193717,0.18358261,84383.0,84382.0,0.4419063]
[1742079193918,0.18358261,84383.0,84382.0,0.4721063]
[1742079197007,0.18358261,84383.0,84382.0,1.0621063]
[1742079197501,0.18358261,84383.0,84382.0,1.0121063]
[1742079197918,0.18358261,84383.0,84382.0,1.0621063]
[1742079198118,0.18358261,84383.0,84382.0,1.0121063]
[1742079198614,0.06507771,84383.0,84382.0,0.7721063]
[1742079198812,0.00017771,84383.0,84382.0,1.0121063]
[1742079199015,0.3608,84392.0,84391.0,0.1184936]
[1742079199327,0.3608,84392.0,84391.0,1.0884936]
[1742079200012,0.3912,84392.0,84391.0,1.1540936]
[1742079200211,0.0304,84392.0,84391.0,1.1540936]
[1742079200513,0.00195586,84400.0,84399.0,0.1184824]
[1742079200818,0.00195586,84400.0,84399.0,0.6684824]
[1742079201815,0.06255586,84400.0,84399.0,0.6839075]
[1742079202209,0.06255586,84400.0,84399.0,1.0296075]
[1742079202905,0.06255586,84400.0,84399.0,0.9796075]
[1742079204415,0.06255586,84400.0,84399.0,1.0096075]
[1742079206215,0.06255586,84400.0,84399.0,0.5196075]
[1742079208114,0.06255586,84400.0,84399.0,0.4896075]
[1742079209019,0.18103686,84400.0,84399.0,0.4896075]
[1742079214330,0.17925871,84400.0,84399.0,0.4896075]
[1742079216112,0.17925871,84400.0,84399.0,0.4588075]
[1742079222028,0.06077771,84400.0,84399.0,0.9188075]
[1742079222228,0.06077771,84400.0,84399.0,0.4888075]
[1742079223130,0.1184755,84404.0,84399.0,0.4888075]
[1742079223131,0.3608,84421.0,84410.0,0.0592333]
[1742079223432,0.3608,84421.0,84420.0,0.1184529]
[1742079223433,0.4792515,84421.0,84420.0,0.1184529]
[1742079223634,0.4792515,84421.0,84420.0,0.3784529]
[1742079223930,0.1184515,84421.0,84420.0,0.3784529]
[1742079224334,0.1184515,84421.0,84420.0,0.4440529]
[1742079226630,0.1816515,84421.0,84420.0,0.4440529]
[1742079233042,0.1816515,84421.0,84420.0,0.45297235]
[1742079245641,0.1816515,84421.0,84420.0,0.07451945]
[1742079246448,0.1184627,84414.0,84413.0,0.1184614]
[1742079246651,0.1184627,84414.0,84413.0,0.4229614]
[1742079246853,0.2147627,84414.0,84413.0,0.4229614]
[1742079248157,0.1823627,84414.0,84413.0,0.4229614]
[1742079250158,0.1823627,84414.0,84413.0,0.6929614]
[1742079250359,0.1823627,84414.0,84413.0,0.4229614]
[1742079250545,0.0639,84414.0,84413.0,0.4229614]
[1742079250856,0.1823613,84414.0,84413.0,0.4229614]
[1742079251960,0.0592294,84416.0,84415.0,0.1184599]
[1742079252165,0.0637,84418.0,84417.0,0.1184571]
[1742079252456,0.1184546,84419.0,84418.0,0.1776801]
[1742079252760,0.1184546,84419.0,84418.0,0.3938272]
[1742079253149,0.479973,84421.0,84420.0,0.1184529]
[1742079253460,0.3608,84421.0,84420.0,0.2284529]
[1742079253654,0.4792515,84421.0,84420.0,0.2284529]
[1742079254750,0.5125515,84421.0,84420.0,0.2284529]
[1742079254957,0.4792515,84421.0,84420.0,0.2284529]
[1742079255258,0.4792515,84421.0,84420.0,0.7084529]
[1742079255644,0.3608,84421.0,84420.0,0.2284529]
[1742079256049,0.1184432,84427.0,84426.0,0.1184445]
[1742079256256,0.1184832,84427.0,84426.0,0.3584445]
[1742079256556,4e-05,84427.0,84426.0,1.0129445]
[1742079256752,4e-05,84427.0,84426.0,0.7329445]
[1742079257953,0.11861821,84429.0,84428.0,0.1184417]
[1742079258155,0.11861821,84429.0,84428.0,0.3684417]
[1742079259158,0.00017771,84429.0,84428.0,0.3684417]
[1742079259761,0.00017771,84429.0,84428.0,0.8784417]
[1742079260268,0.00017771,84429.0,84428.0,0.9284417]
[1742079260469,0.00017771,84429.0,84428.0,0.8784417]
[1742079261369,0.11861801,84429.0,84428.0,0.3684417]
[1742079262160,0.15171801,84429.0,84428.0,0.3684417]
[1742079264564,0.00017771,84429.0,84428.0,0.3684417]
[1742079264764,0.00017771,84429.0,84428.0,0.9984417]
[1742079265176,0.118431,84436.0,84435.0,0.1184319]
[1742079265372,0.151631,84436.0,84435.0,0.3784319]
[1742079266074,0.151631,84436.0,84435.0,0.4436319]
[1742079268177,0.0332,84436.0,84435.0,0.4436319]
[1742079268569,0.1516305,84436.0,84435.0,0.4436319]
[1742079281884,0.1845305,84436.0,84435.0,0.4436319]
[1742079295594,0.1845305,84436.0,84435.0,0.3252]
[1742079296389,0.1845305,84436.0,84435.0,0.4436319]
[1742079298694,0.1845305,84436.0,84435.0,0.3252]
[1742079298899,0.1845305,84436.0,84435.0,0.4436319]
[1742079301601,0.2161305,84436.0,84435.0,0.4436319]
[1742079303189,0.1832305,84436.0,84435.0,0.4436319]
[1742079305196,0.1184305,84436.0,84435.0,0.4436319]
[1742079306104,0.3608,84439.0,84438.0,0.1184277]
[1742079306300,0.4792263,84439.0,84438.0,0.3484277]
[1742079306893,0.4792263,84439.0,84438.0,0.4108277]
[1742079308204,0.3608,84439.0,84438.0,0.4108277]
[1742079308407,0.4792263,84439.0,84438.0,0.4108277]
[1742079311306,0.5415263,84439.0,84438.0,0.4108277]
[1742079311504,0.4792263,84439.0,84438.0,0.4108277]
[1742079313697,0.1184263,84439.0,84438.0,0.4108277]
[1742079314512,0.1184649,84440.0,84439.0,0.1184263]
[1742079314698,0.1184649,84440.0,84439.0,0.4440263]
[1742079315099,0.1184249,84440.0,84439.0,0.4440263]
[1742079315599,0.0592518,84441.0,84440.0,0.1184249]
[1742079315600,0.1184635,84441.0,84440.0,0.1184249]
[1742079315799,0.1184635,84441.0,84440.0,0.4440249]
[1742079317101,0.1500635,84441.0,84440.0,0.4440249]
[1742079317413,0.1824635,84441.0,84440.0,0.4440249]
[1742079318012,0.1824235,84441.0,84440.0,0.4440249]
[1742079351436,0.1824235,84441.0,84440.0,0.6940249]
[1742079351636,0.1824235,84441.0,84440.0,0.4440249]
[1742079366847,0.064,84441.0,84440.0,0.4440249]